fUSD/lending_fUSD_20240805
["ID","MTS","AMOUNT","RATE_DAILY","PERIOD"]
[334285845,1722893431722,-2474.60085014,0.00010125,2]
[334285846,1722893431732,-261.49,0.00010144,2]
[334285847,1722893431742,-4021.41,0.00010169,2]
[334285848,1722893431751,-480.0,0.00010265,2]
[334285849,1722893431763,-170.17,0.00010385,2]
[334285850,1722893431773,-499.99,0.00010385,2]
[334285851,1722893431782,-596.18,0.0001055,2]
[334285852,1722893431792,-1000.0,0.000107,2]
[334285853,1722893431802,-400.0,0.0001073,2]
[334285854,1722893431813,-22958.2074,0.000109,2]
[334285855,1722893431824,-7500.0,0.000109,2]
[334285856,1722893431834,-172.22398976,0.000109,2]
[334285857,1722893431843,-192.42893812,0.000109,2]
[334285858,1722893431852,-250.0,0.00010959,2]
[334285859,1722893431861,-256.9840499,0.00010999,2]
[334285860,1722893431871,-27807.86477208,0.00011,2]
[334285872,1722893437458,-1954.87549614,0.00011,2]
[334285873,1722893437732,-7579.19684033,0.00011,2]
[334285874,1722893437817,-1431.9645373,0.00011,2]
[334285956,1722893441032,-725.89778696,0.00011,2]
[334285990,1722893442476,-1364.2199562,0.00011,2]
[334285991,1722893442488,-833.87987711,0.00011,2]
[334285992,1722893442500,-419.13536791,0.00011,2]
[334285993,1722893442512,-1464.06406546,0.00011,2]
[334285997,1722893443023,-935.898057,0.00011,2]
[334285998,1722893443038,-448.95942964,0.00011,2]
[334285999,1722893443056,-1723.80973372,0.00011,2]
[334286000,1722893443067,-494.06,0.00011,2]
[334286001,1722893443078,-12295.49214234,0.00011,2]
[334286002,1722893443091,-1279.97005618,0.00011,2]
[334286003,1722893443102,-694.5375725,0.00011,2]
[334286004,1722893443114,-3939.92439593,0.00011,2]
[334286008,1722893446600,-2900.49744645,0.00011,2]
[334286017,1722893592976,536.56,8.679e-05,2]
[334286018,1722893616530,697.19775786,0.00025,60]
[334286019,1722894074593,-420.0,0.0001,3]
[334286020,1722894100709,-162.63203017,0.0001,2]
[334286021,1722894106716,-170.4054005,0.0001,2]
[334286022,1722894122738,-231.57257897,0.0001,2]
[334286023,1722894129294,-449.29624025,0.0001,2]
[334286024,1722894147422,509.73,8.471e-05,2]
[334286025,1722894161723,-1050.08109978,0.0001,2]
[334286027,1722894199673,-162.63203017,0.0001,2]
[334286028,1722894204596,-500.0,9.92e-05,2]
[334286029,1722894205965,-170.4054005,0.0001,2]
[334286030,1722894235123,-449.29624025,0.0001,2]
[334286031,1722894259560,-1124.38199192,0.0001,2]
[334286032,1722894289683,-240.53882329,0.0001,2]
[334286033,1722894302978,-170.20455847,0.0001,2]
[334286034,1722894329704,-449.03921783,0.0001,2]
[334286212,1722894601407,484.24,8.219e-05,2]
[334286232,1722894631654,-416.0,0.00010271,2]
[334286233,1722894631665,-500.0,0.000103,3]
[334286234,1722894631675,-1000.0,0.000104,3]
[334286235,1722894631685,-200.0,0.00010418,2]
[334286236,1722894631694,-250.0,0.00010439,2]
[334286237,1722894631704,-484.24,0.0001048,2]
[334286238,1722894631713,-1600.0,0.000105,3]
[334286239,1722894631723,-584.0,0.00010527,2]
[334286240,1722894631733,-320.0,0.00010534,2]
[334286241,1722894631742,-150.0,0.00010575,2]
[334286242,1722894631752,-2100.0,0.000106,3]
[334286243,1722894631762,-150.0,0.00010629,2]
[334286244,1722894631773,-245.76,0.00010629,2]
[334286245,1722894631785,-54.24,0.00010629,2]
[334286246,1722894631795,-834.66,0.0001063,2]
[334286247,1722894631805,-420.67,0.0001063,2]
[334286248,1722894631815,-834.66,0.0001063,2]
[334286249,1722894631827,-420.67,0.0001063,2]
[334286250,1722894631837,-834.66,0.0001063,2]
[334286251,1722894631847,-834.66,0.0001063,2]
[334286252,1722894631857,-420.67,0.0001063,2]
[334286253,1722894631866,-841.34,0.0001063,2]
[334286254,1722894631876,-834.66,0.0001063,2]
[334286256,1722894631886,-420.67,0.0001063,2]
[334286257,1722894631896,-420.67,0.0001063,2]
[334286258,1722894631905,-420.67,0.0001063,2]
[334286259,1722894631915,-834.66,0.0001063,2]
[334286260,1722894631924,-420.67,0.0001063,2]
[334286261,1722894631934,-834.66,0.0001063,2]
[334286262,1722894631944,-420.67,0.0001063,2]
[334286263,1722894631953,-420.67,0.0001063,2]
[334286264,1722894631963,-2600.0,0.000107,3]
[334286265,1722894631973,-500.0,0.000108,3]
[334286266,1722894631982,-499.99,0.000109,2]
[334286267,1722894631992,-420.67,0.000109,2]
[334286268,1722894632002,-834.66,0.000109,2]
[334286269,1722894632011,-420.67,0.000109,2]
[334286270,1722894632024,-834.66,0.000109,2]
[334286271,1722894632034,-7500.0,0.000109,2]
[334286272,1722894632044,-500.0,0.000109,3]
[334286273,1722894632054,-250.0,0.00010959,2]
[334286274,1722894632064,-150.2,0.0001099,2]
[334286275,1722894632080,-150.2,0.0001099,2]
[334286276,1722894632090,-150.2,0.0001099,2]
[334286277,1722894632101,-150.2,0.0001099,2]
[334286278,1722894632113,-150.2,0.0001099,2]
[334286279,1722894632123,-150.2,0.0001099,2]
[334286280,1722894632134,-150.2,0.0001099,2]
[334286281,1722894632144,-150.2,0.0001099,2]
[334286282,1722894632154,-150.2,0.0001099,2]
[334286283,1722894632164,-150.2,0.0001099,2]
[334286284,1722894632174,-383.2821905,0.00010999,2]
[334286285,1722894632183,-401.58655426,0.00010999,2]
[334286286,1722894632193,-524.0,0.00011,2]
[334286287,1722894632203,-81690.25125524,0.00011,2]
[334286288,1722894632240,-644360.0000003,0.00011,2]
[334286299,1722894637594,-191.64109525,0.00010999,2]
[334286300,1722894637604,-473.12470475,0.00011,2]
[334286301,1722894637636,-435.35854429,0.00011,2]
[334286302,1722894637778,-522.95955266,0.00011,2]
[334286303,1722894637790,-302.39569675,0.00011,2]
[334286304,1722894637828,-20434.90455221,0.00011,2]
[334286305,1722894637873,-2100192.53419896,0.00011,2]
[334286306,1722894637883,-463168.81007323,0.00011,2]
[334286377,1722894639940,-5485.2,0.000109,2]
[334286379,1722894639952,-2014.8,0.000109,2]
[334286381,1722894639962,-29956.76757775,0.00011,2]
[334286383,1722894639975,-3470.13415581,0.00011,2]
[334286384,1722894641956,-191.64109525,0.00010999,2]
[334286385,1722894641967,-190.2013281,0.00011,2]
[334286395,1722894642680,-2301.288471,0.00011,2]
[334286396,1722894642729,-3599.96875131,0.00011,2]
[334287004,1722894839029,500.0,0.00025,60]
[334287005,1722894939980,500.0,0.00025,60]
[334287006,1722895024547,500.0,0.00025,60]
[334287007,1722895085618,435.81,8.567e-05,2]
[334287008,1722895121552,500.0,0.00025,60]
[334287009,1722895237566,500.0,0.00025,60]
[334287010,1722895340553,500.0,0.00025,60]
[334287011,1722895404938,500.0,8.499e-05,2]
[334287012,1722895435579,500.0,0.00025,60]
[334287013,1722895465562,500.0,0.00025,60]
[334287021,1722895578784,414.01,8.481e-05,2]
[334287022,1722895578925,1200.0,0.00025,60]
[334287023,1722895579623,500.0,0.00025,60]
[334287034,1722895635699,3110.0,0.00025,60]
[334287038,1722895686580,500.0,0.00025,60]
[334287117,1722895766598,500.0,0.00025,60]
[334287129,1722895832421,-236.47,0.00010355,2]
[334287130,1722895832433,-667.2,0.00010388,2]
[334287131,1722895832444,-250.0,0.00010429,2]
[334287132,1722895832454,-332.8,0.00010509,2]
[334287133,1722895832464,-173.33,0.00010714,2]
[334287134,1722895832475,-414.01,0.00010745,2]
[334287135,1722895832485,-300.0,0.00010899,2]
[334287136,1722895832495,-172.22398976,0.000109,2]
[334287137,1722895832504,-1000.0,0.000109,2]
[334287141,1722895832995,-7500.0,0.000109,2]
[334287142,1722895833008,-2337.16327014,0.0001094,2]
[334287143,1722895833021,-561.51132701,0.0001094,2]
[334287144,1722895833034,-101.32540285,0.0001094,2]
[334287145,1722895833044,-499.99,0.0001095,2]
[334287146,1722895833055,-250.0,0.00010959,2]
[334287147,1722895833064,-925.23844937,0.00010999,2]
[334287148,1722895833075,-89.13864073,0.00011,2]
[334287149,1722895833088,-344051.72120971,0.00011,2]
[334287150,1722895833097,-75853.4623571,0.00011,2]
[334287151,1722895833109,-6558.09753364,0.00011,2]
[334287152,1722895833120,-298.3,0.00011,2]
[334287153,1722895833132,-1549.74687682,0.00011,2]
[334287154,1722895833153,-872.67905712,0.00011,2]
[334287155,1722895833165,-2481.20419989,0.00011,2]
[334287156,1722895833177,-555.90330277,0.00011,2]
[334287157,1722895833188,-2585.10929238,0.00011,2]
[334287158,1722895833200,-5470.3656739,0.00011,2]
[334287159,1722895833212,-341.48088377,0.00011,2]
[334287160,1722895833224,-13895.0,0.00011,2]
[334287161,1722895833236,-1104.46932817,0.00011,2]
[334287162,1722895833247,-327.85685687,0.00011,2]
[334287165,1722895837840,-1000.0,0.000109,2]
[334287166,1722895837849,-107.2408442,0.00011,2]
[334287167,1722895837861,-3692.52875182,0.00011,2]
[334287168,1722895837872,-8179.99999998,0.00011,2]
[334287169,1722895837903,-614.60712979,0.00011,2]
[334287170,1722895838084,-1432.3301818,0.00011,2]
[334287219,1722895842051,-2490.75,0.00011,2]
[334287220,1722895842063,-6315.3454475,0.00011,2]
[334287221,1722895842377,-520.95128191,0.00011,2]
[334287222,1722895842389,-1620.40557737,0.00011,2]
[334287223,1722895842402,-2028.24217741,0.00011,2]
[334287224,1722895842414,-11222.92795268,0.00011,2]
[334287239,1722895842879,-526.02,0.00011,2]
[334287240,1722895842933,-20970.93182634,0.00011,2]
[334287241,1722895842946,-16896.2586345,0.00011,2]
[334287242,1722895843036,-3029.65,0.00011,2]
[334287243,1722895843052,-9513.39666301,0.00011,2]
[334287317,1722895843996,-3313.60911296,0.00011,2]
[334287353,1722895847050,-1168.77872412,0.000109,2]
[334287361,1722896151168,411.9,8.965e-05,2]
[334287362,1722896189044,871.50003279,8.965e-05,2]
[334287363,1722896204511,190.57872947,8.965e-05,2]
[334287364,1722896205465,411.63443338,8.965e-05,2]
[334287365,1722896588118,-250.0,0.00010347,2]
[334287366,1722896588139,-466.24,0.00010347,2]
[334287367,1722896588166,-150.0,0.00010677,2]
[334287368,1722896588187,-150.0,0.00010699,2]
[334287369,1722896588206,-300.14737164,0.00010806,2]
[334287370,1722896588226,-500.0,0.00010813,2]
[334287371,1722896588248,-150.0,0.00010847,2]
[334287372,1722896588268,-155.0,0.00010866,2]
[334287373,1722896588288,-526.30586485,0.00010866,2]
[334287374,1722896588310,-150.0,0.0001088,2]
[334287375,1722896588331,-150.0,0.00010893,2]
[334287376,1722896588351,-300.0,0.00010899,2]
[334287377,1722896588371,-1000.0,0.000109,2]
[334287378,1722896588391,-172.22398976,0.000109,2]
[334287379,1722896588414,-500.8528,0.000109,2]
[334287380,1722896588434,-654.6147,0.000109,2]
[334287381,1722896588455,-2353.61527375,0.000109,2]
[334287382,1722896603864,500.0,8.893e-05,2]
[334287383,1722896618375,391.3,9.028e-05,2]
[334287384,1722896635229,-215.563395,0.00010779,2]
[334287385,1722896635250,-526.30586485,0.00010866,2]
[334287386,1722896635271,-155.0,0.00010866,2]
[334287387,1722896635293,-5146.38472625,0.000109,2]
[334287388,1722896635315,-1546.78971901,0.000109,2]
[334287389,1722896635336,-10279.95629489,0.000109,2]
[334287487,1722897038021,-4089.74,0.00010467,2]
[334287490,1722897038031,-250.0,0.00010477,2]
[334287494,1722897038041,-256.59,0.00010514,2]
[334287497,1722897038051,-1000.0,0.00010572,2]
[334287500,1722897038060,-198.8,0.00010581,2]
[334287503,1722897038070,-7741.55,0.00010744,2]
[334287505,1722897038080,-1256.69308561,0.00010779,2]
[334287507,1722897038089,-526.30586485,0.00010779,2]
[334287508,1722897038099,-173.35,0.00010794,2]
[334287509,1722897038110,-1000.0,0.000109,2]
[334287510,1722897038119,-7500.0,0.000109,2]
[334287511,1722897038129,-198.44234241,0.000109,2]
[334287512,1722897038139,-330.66,0.00010929,2]
[334287513,1722897038148,-250.0,0.00010959,2]
[334287514,1722897038158,-150.26,0.0001099,2]
[334287515,1722897038167,-38252.61738268,0.00011,2]
[334287516,1722897038183,-9095.76630378,0.00011,2]
[334287517,1722897038195,-33278.88494011,0.00011,2]
[334287518,1722897038311,-2944.34240302,0.00011,2]
[334287519,1722897038323,-9101.3781579,0.00011,2]
[334287520,1722897038335,-8693.51986952,0.00011,2]
[334287521,1722897038347,-1381.24087936,0.00011,2]
[334287522,1722897038358,-3166.04903559,0.00011,2]
[334287523,1722897038369,-2314.74547626,0.00011,2]
[334287577,1722897040099,-7499.66540636,0.00011,2]
[334287578,1722897040111,-5521.97039365,0.00011,2]
[334287579,1722897040264,-840.96512736,0.00011,2]
[334287595,1722897043096,-641.5247125,0.00011,2]
[334287596,1722897043107,-4526.756931,0.00011,2]
[334287597,1722897043119,-1732.275,0.00011,2]
[334287598,1722897043130,-361.6920653,0.00011,2]
[334287599,1722897043141,-752.79796392,0.00011,2]
[334287600,1722897043152,-1559.45168708,0.00011,2]
[334287601,1722897043163,-273.88727203,0.00011,2]
[334287602,1722897043178,-901.79931067,0.00011,2]
[334287603,1722897043187,-790.57147706,0.00011,2]
[334287604,1722897043197,-6940.50488479,0.00011,2]
[334287605,1722897043208,-814.55264413,0.00011,2]
[334287606,1722897043220,-6442.39547002,0.00011,2]
[334287607,1722897043231,-2412.0,0.00011,2]
[334287608,1722897043243,-367.69336575,0.00011,2]
[334287609,1722897043254,-381.4185858,0.00011,2]
[334287610,1722897043833,-3067.36856786,0.00011,2]
[334287611,1722897043845,-6400.89541296,0.00011,2]
[334287612,1722897043856,-503.19150413,0.00011,2]
[334287613,1722897043868,-922.5063449,0.00011,2]
[334287614,1722897043880,-382.12258582,0.00011,2]
[334287616,1722897046900,-1077.19445617,0.00011,2]
[334287617,1722897046912,-1346.35809449,0.00011,2]
[334287618,1722897046924,-8027.63642451,0.00011,2]
[334287619,1722897046935,-361.43277495,0.00011,2]
[334287620,1722897046946,-5966.55757461,0.00011,2]
[334287621,1722897046958,-718.1047832,0.00011,2]
[334287622,1722897046973,-356.88365472,0.00011,2]
[334287623,1722897046984,-480.5696256,0.00011,2]
[334287624,1722897047200,-882.94760634,0.00011,2]
[334287625,1722897047215,-300.16333141,0.00011,2]
[334287626,1722897047226,-1494.82037085,0.00011,2]
[334287628,1722897047242,-52333.48844806,0.00011,2]
[334287629,1722897047254,-2007.07929185,0.00011,2]
[334287630,1722897047267,-306.42815309,0.00011,2]
[334287631,1722897047279,-898.99522388,0.00011,2]
[334287632,1722897047290,-900.09,0.00011,2]
[334287633,1722897047310,-34161.23272605,0.00011,2]
[334287634,1722897047321,-977.99455774,0.00011,2]
[334287635,1722897047334,-1661.36023817,0.00011,2]
[334287636,1722897047345,-1793.87083348,0.00011,2]
[334287637,1722897047357,-283.51720375,0.00011,2]
[334287638,1722897112858,391.11,9.081e-05,2]
[334287639,1722897190260,307.080606,0.00025,60]
[334287640,1722897193766,307.080606,0.00025,61]
[334287641,1722897204031,500.0,9.008e-05,2]
[334287642,1722897209718,311.080606,0.00025,65]
[334287643,1722897215561,311.080606,0.00025,66]
[334287644,1722897219958,311.080606,0.00025,67]
[334287645,1722897230183,311.080606,0.00025,68]
[334287646,1722897261955,373.080607,0.00025,72]
[334287647,1722897265089,373.080607,0.00025,73]
[334287648,1722897277365,337.080607,0.00025,74]
[334287649,1722897278661,500.0,0.00025,60]
[334287650,1722897280948,337.080607,0.00025,75]
[334287651,1722897287135,337.080607,0.00025,60]
[334287652,1722897293758,500.0,0.00025,60]
[334287653,1722897295589,337.080607,0.00025,61]
[334287657,1722897410671,500.0,0.00025,60]
[334287658,1722897463245,60168.0,0.00025,60]
[334287659,1722897503180,500.0,0.00025,60]
[334287660,1722897580305,392.49,8.219e-05,2]
[334287661,1722897595266,500.0,0.00025,60]
[334287662,1722897684247,500.0,0.00025,60]
[334287663,1722897690507,500.0,0.00025,60]
[334287664,1722897696602,500.0,0.00025,60]
[334287665,1722897699912,500.0,0.00025,60]
[334287666,1722897712058,500.0,0.00025,60]
[334287667,1722897806182,500.0,0.00025,60]
[334287668,1722897808137,500.0,8.153e-05,2]
[334287669,1722897854733,500.0,0.00025,60]
[334287673,1722897976217,500.0,0.00025,60]
[334287684,1722898061214,500.0,0.00025,60]
[334287685,1722898073133,392.75,8.219e-05,2]
[334287696,1722898162972,-500.0,9.64e-05,2]
[334287697,1722898162998,-250.0,9.649e-05,2]
[334287698,1722898163025,-800.0,9.691e-05,2]
[334287699,1722898163049,-2152.26,9.739e-05,2]
[334287700,1722898163074,-2774.99,9.875e-05,2]
[334287701,1722898163098,-269.22861805,9.888e-05,2]
[334287702,1722898163122,-300.0,9.907e-05,2]
[334287703,1722898163147,-10953.52138195,9.908e-05,2]
[334287715,1722898232452,-694.3434613,9.639e-05,2]
[334287717,1722898232462,-2342.84,9.739e-05,2]
[334287719,1722898232472,-355.85,9.739e-05,2]
[334287721,1722898232482,-3243.08391714,9.826e-05,2]
[334287748,1722898238276,-237.78,9.651e-05,2]
[334287749,1722898238286,-536.39903405,9.826e-05,2]
[334287751,1722898239540,-804.78704881,9.826e-05,2]
[334287752,1722898239550,-300.0,9.907e-05,2]
[334287753,1722898239559,-974.41861805,9.908e-05,2]
[334287754,1722898239568,-1256.19471539,9.962e-05,2]
[334287755,1722898239578,-264.53,0.00010027,2]
[334287756,1722898239587,-796.69,0.00010058,2]
[334287757,1722898239596,-499.99,0.00010063,2]
[334287758,1722898239605,-188.85,0.00010159,2]
[334287759,1722898239617,-200.0,0.00010163,2]
[334287760,1722898239626,-392.75,0.00010457,2]
[334287761,1722898239636,-150.0,0.00010466,2]
[334287762,1722898239645,-150.0,0.000105,2]
[334287763,1722898239654,-177.52,0.00010528,2]
[334287764,1722898239663,-156.29,0.00010535,2]
[334287765,1722898239672,-156.29,0.00010544,2]
[334287766,1722898239681,-156.29,0.00010553,2]
[334287767,1722898239691,-741.18,0.00010553,2]
[334287768,1722898239700,-156.29,0.00010562,2]
[334287769,1722898239709,-156.29,0.0001057,2]
[334287770,1722898239718,-150.0,0.00010578,2]
[334287771,1722898239727,-150.0,0.00010578,2]
[334287772,1722898239736,-150.0,0.00010578,2]
[334287773,1722898239746,-150.0,0.00010578,2]
[334287774,1722898239755,-150.0,0.00010578,2]
[334287775,1722898239764,-150.0,0.00010578,2]
[334287776,1722898239773,-150.0,0.00010578,2]
[334287777,1722898239783,-150.0,0.00010578,2]
[334287778,1722898239792,-150.0,0.00010578,2]
[334287779,1722898239801,-150.0,0.00010578,2]
[334287780,1722898239810,-156.29,0.00010579,2]
[334287781,1722898239819,-193.4,0.00010579,2]
[334287782,1722898239828,-1667.07,0.00010579,2]
[334287783,1722898239837,-9389.16,0.00010579,2]
[334287784,1722898239846,-156.29,0.00010588,2]
[334287785,1722898239855,-329.77,0.000106,2]
[334287786,1722898239868,-300.0,0.000106,2]
[334287787,1722898239877,-150.0,0.000106,2]
[334287788,1722898239887,-150.0,0.000106,2]
[334287789,1722898239897,-150.0,0.000106,2]
[334287791,1722898239907,-620.76,0.00010694,2]
[334287792,1722898239917,-150.0,0.000108,2]
[334287793,1722898239927,-150.0,0.000108,2]
[334287794,1722898239937,-150.0,0.000108,2]
[334287795,1722898239947,-155.26,0.000108,2]
[334287796,1722898239957,-150.0,0.000108,2]
[334287797,1722898239967,-150.0,0.000108,2]
[334287798,1722898239976,-150.0,0.000108,2]
[334287799,1722898239986,-150.0,0.000108,2]
[334287800,1722898239996,-150.0,0.000108,2]
[334287801,1722898240007,-841.34,0.000108,2]
[334287802,1722898240017,-150.0,0.000108,2]
[334287803,1722898240026,-150.0,0.000108,2]
[334287804,1722898240036,-150.0,0.000108,2]
[334287805,1722898240045,-150.0,0.000108,2]
[334287806,1722898240055,-150.0,0.000108,2]
[334287807,1722898240064,-834.66,0.000108,2]
[334287808,1722898240073,-150.0,0.000108,2]
[334287809,1722898240083,-150.0,0.000108,2]
[334287810,1722898240092,-150.0,0.000108,2]
[334287811,1722898240102,-150.0,0.000108,2]
[334287812,1722898240114,-150.0,0.000108,2]
[334287813,1722898240123,-150.0,0.000108,2]
[334287814,1722898240133,-1000.0,0.000109,2]
[334287815,1722898240142,-1721.3455,0.000109,2]
[334287816,1722898240152,-172.22398976,0.000109,2]
[334287817,1722898240161,-150.0,0.000109,2]
[334287818,1722898240171,-150.0,0.000109,2]
[334287819,1722898240180,-150.0,0.000109,2]
[334287820,1722898240190,-150.0,0.000109,2]
[334287821,1722898240200,-7500.0,0.000109,2]
[334287822,1722898240210,-198.44234241,0.000109,2]
[334287823,1722898240220,-800.0,0.00010903,2]
[334287824,1722898240234,-168.0,0.00010905,2]
[334287825,1722898240244,-355.85,0.00010957,2]
[334287826,1722898240254,-250.0,0.00010959,2]
[334287827,1722898240264,-67557.37818947,0.0001099,2]
[334287828,1722898240810,-2128.2593829,0.0001099,2]
[334287838,1722898243281,-1114.98776206,0.0001099,2]
[334287839,1722898243294,-567.63859501,0.0001099,2]
[334287840,1722898243377,-369.12270208,0.0001099,2]
[334287841,1722898243390,-13119.3594,0.0001099,2]
[334287842,1722898243481,-1653.81220895,0.0001099,2]
[334287843,1722898243493,-6743.53679999,0.0001099,2]
[334287844,1722898244530,-166590.0,0.0001099,2]
[334287845,1722898244542,-1134.31999994,0.0001099,2]
[334287846,1722898244554,-912.45,0.0001099,2]
[334287851,1722898246401,-446.07131065,0.0001099,2]
[334287852,1722898246413,-611.967,0.0001099,2]
[334287859,1722898246492,-371.88291753,0.0001099,2]
[334287861,1722898246504,-1324.8,0.0001099,2]
[334287863,1722898246516,-387.7317709,0.0001099,2]
[334287866,1722898246531,-310.531547,0.0001099,2]
[334287868,1722898246543,-740.40033588,0.0001099,2]
[334287873,1722898246575,-623.04947874,0.0001099,2]
[334287875,1722898246587,-1919.57705919,0.0001099,2]
[334287877,1722898246599,-453.46218221,0.0001099,2]
[334287878,1722898246611,-344.849717,0.0001099,2]
[334287880,1722898246656,-298.66236919,0.0001099,2]
[334287883,1722898246670,-544.4787341,0.0001099,2]
[334287884,1722898246682,-418.84953567,0.0001099,2]
[334287885,1722898246693,-321.8,0.0001099,2]
[334287892,1722898561426,500.0,0.00025,60]
[334287893,1722898619738,500.0,0.00025,60]
[334287894,1722898628744,500.0,0.00025,60]
[334287895,1722898690470,391.26,8.219e-05,2]
[334287896,1722898741866,153.5,9.598e-05,2]
[334287897,1722898786502,559.19,9.505e-05,2]
[334287898,1722898795328,1368.43,9.512e-05,2]
[334287899,1722898818326,15527.62,9.494e-05,2]
[334287900,1722898818729,8362.38,9.494e-05,2]
[334287901,1722898826836,195.87,9.512e-05,2]
[334287902,1722898836623,558.8,9.536e-05,2]
[334287903,1722898845395,392.8,9.536e-05,2]
[334287904,1722898882598,619.080608,0.00025,60]
[334287905,1722898889977,619.080608,0.00025,61]
[334287906,1722898899445,619.080608,0.00025,65]
[334287907,1722898900878,619.080608,0.00025,66]
[334287908,1722898909155,617.080608,0.00025,67]
[334287909,1722898914810,617.080608,0.00025,68]
[334287910,1722898930891,733.080608,0.00025,72]
[334287911,1722898944514,773.080608,0.00025,73]
[334287912,1722898953762,773.080608,0.00025,74]
[334287913,1722898961023,500.0,0.00025,60]
[334287914,1722898962786,672.4,9.554e-05,2]
[334287915,1722898964116,787.080608,0.00025,75]
[334287916,1722898975759,500.0,0.00025,60]
[334287917,1722899030721,200.0,9.543e-05,2]
[334287918,1722899052984,428.24,9.535e-05,2]
[334287919,1722899092667,-165.0,0.00017778,30]
[334287920,1722899092698,-165.0,0.00017788,30]
[334287921,1722899092725,-165.0,0.00017798,30]
[334287922,1722899092758,-165.0,0.00019121,30]
[334287923,1722899092785,-165.0,0.00019131,30]
[334287924,1722899092813,-165.0,0.0001914,30]
[334287925,1722899092840,-165.0,0.00019141,30]
[334287926,1722899092866,-165.0,0.0001915,30]
[334287927,1722899092897,-169.5,0.0001988,30]
[334287928,1722899092924,-165.0,0.0001989,30]
[334287929,1722899092959,-2492.67691329,0.0002,30]
[334287930,1722899093100,-250.0,0.0002,30]
[334287931,1722899093231,-1404.5,0.0002,30]
[334287932,1722899093264,-250.0,0.00021,30]
[334287933,1722899114614,223.65,0.00017798,30]
[334287934,1722899155728,250.0,9.556e-05,2]
[334287935,1722899205747,389.39,8.219e-05,2]
[334287955,1722899393371,1947.2,9.404e-05,2]
[334287956,1722899404056,-153.5,9.607e-05,2]
[334287957,1722899404089,-1000.0,9.608e-05,2]
[334287958,1722899404123,-153.5,9.617e-05,2]
[334287959,1722899404157,-153.5,9.626e-05,2]
[334287960,1722899404193,-153.5,9.636e-05,2]
[334287961,1722899404232,-153.5,9.646e-05,2]
[334287962,1722899404272,-420.67,9.65e-05,2]
[334287963,1722899404325,-834.66,9.65e-05,2]
[334287964,1722899404357,-150.0,9.65e-05,2]
[334287965,1722899404388,-258.39766842,9.65e-05,2]
[334287975,1722899433044,-63.26233158,9.65e-05,2]
[334287976,1722899433059,-150.0,9.656e-05,2]
[334287977,1722899433073,-150.0,9.656e-05,2]
[334287978,1722899433087,-500.0,9.665e-05,2]
[334287979,1722899433107,-800.97,9.67e-05,2]
[334287980,1722899433123,-150.99,9.67e-05,2]
[334287981,1722899433135,-284.54,9.778e-05,2]
[334287982,1722899433147,-150.0,9.778e-05,2]
[334287983,1722899433159,-153.87,9.778e-05,2]
[334287984,1722899433175,-499.99,9.778e-05,2]
[334287985,1722899433189,-150.99,9.778e-05,2]
[334287986,1722899433203,-168.64,9.806e-05,2]